fUST/lending_fUST_20240502
["ID","MTS","AMOUNT","RATE_DAILY","PERIOD"]
[325229131,1714597441774,-500.0,0.00053972,120]
[325229132,1714597441797,-500.0,0.00053972,120]
[325229133,1714597441820,-574.56,0.00053972,120]
[325229134,1714597441844,-500.0,0.00053972,120]
[325229135,1714597441867,-500.0,0.00053972,120]
[325229136,1714597441890,-541.34,0.00053972,120]
[325229137,1714597441913,-500.0,0.00053972,120]
[325229138,1714597441936,-500.0,0.00053972,120]
[325229139,1714597441960,-500.0,0.00053972,120]
[325229140,1714597441983,-500.0,0.00053972,120]
[325229141,1714597442007,-500.0,0.00053972,120]
[325229142,1714597442031,-500.0,0.00053972,120]
[325229143,1714597442054,-225.84,0.00053972,120]
[325229144,1714597442077,-500.0,0.00053972,120]
[325229145,1714597442104,-500.0,0.00053972,120]
[325229146,1714597442130,-736.97,0.00053972,120]
[325229147,1714597442153,-506.71,0.00053972,120]
[325229148,1714597442181,-500.0,0.00053972,120]
[325229149,1714597442206,-500.0,0.00053972,120]
[325229150,1714597442231,-500.0,0.00053972,120]
[325229151,1714597442256,-500.0,0.00053972,120]
[325229152,1714597442280,-500.0,0.00053972,120]
[325229153,1714597442304,-500.0,0.00053972,120]
[325229154,1714597442327,-447.76,0.00053972,120]
[325229155,1714597442357,-514.57148142,0.00053972,120]
[325229156,1714597442380,-500.0,0.00053972,120]
[325229157,1714597442403,-500.0,0.00053972,120]
[325229158,1714597442427,-553.79,0.00053972,120]
[325229159,1714597442452,-500.0,0.00053972,120]
[325229160,1714597442475,-500.0,0.00053972,120]
[325229161,1714597442498,-500.0,0.00053972,120]
[325229162,1714597442522,-738.1,0.00053972,120]
[325229163,1714597442545,-500.0,0.00053972,120]
[325229164,1714597442572,-500.0,0.00053972,120]
[325229165,1714597442596,-500.0,0.00053972,120]
[325229166,1714597442619,-500.0,0.00053972,120]
[325229167,1714597442643,-500.0,0.00053972,120]
[325229168,1714597442668,-500.0,0.00053972,120]
[325229169,1714597442694,-500.0,0.00053972,120]
[325229170,1714597442720,-9470.42,0.00053972,120]
[325229171,1714597442744,-504.0284564,0.00053972,120]
[325229172,1714597442769,-500.0,0.00053972,120]
[325229173,1714597442792,-500.0,0.00053972,120]
[325229174,1714597442816,-500.0,0.00053972,120]
[325229175,1714597442842,-500.0,0.00053972,120]
[325229176,1714597442867,-588.28,0.00053972,120]
[325229177,1714597442890,-547.16,0.00053972,120]
[325229178,1714597442914,-500.0,0.00053972,120]
[325229179,1714597442937,-500.0,0.00053972,120]
[325229180,1714597442962,-500.0,0.00053972,120]
[325229181,1714597442986,-500.0,0.00053972,120]
[325229182,1714597443009,-500.0,0.00053972,120]
[325229183,1714597443034,-500.0,0.00053972,120]
[325229184,1714597443058,-175.97,0.00053972,120]
[325229185,1714597443082,-500.0,0.00053972,120]
[325229186,1714597443108,-563.93,0.00053972,120]
[325229187,1714597443131,-593.55273792,0.00053972,120]
[325229188,1714597443154,-500.0,0.00053972,120]
[325229189,1714597443183,-500.0,0.00053972,120]
[325229190,1714597443211,-500.0,0.00053972,120]
[325229191,1714597443237,-500.0,0.0005452,120]
[325229192,1714597443265,-500.0,0.0005452,120]
[325229193,1714597443290,-500.0,0.0005452,120]
[325229194,1714597443314,-251.99,0.0005452,120]
[325229195,1714597443346,-307.25,0.0005452,120]
[325229196,1714597443372,-540.18,0.0005452,120]
[325229197,1714597443396,-606.12,0.0005452,120]
[325229198,1714597443420,-706.38,0.0005452,120]
[325229199,1714597443446,-500.0,0.0005452,120]
[325229200,1714597443475,-412.31,0.0005452,120]
[325229201,1714597443519,-220.91,0.0005452,120]
[325229202,1714597443546,-500.0,0.0005452,120]
[325229203,1714597443571,-500.0,0.0005452,120]
[325229204,1714597443599,-189.41,0.0005452,120]
[325229205,1714597443625,-500.0,0.0005452,120]
[325229206,1714597443650,-500.62,0.0005452,120]
[325229207,1714597443674,-500.0,0.0005452,120]
[325229208,1714597443699,-500.0,0.0005452,120]
[325229209,1714597443723,-530.02,0.0005452,120]
[325229210,1714597443747,-736.97,0.0005452,120]
[325229211,1714597443771,-500.0,0.0005452,120]
[325229212,1714597443793,-500.0,0.0005452,120]
[325229213,1714597443817,-500.0,0.0005452,120]
[325229214,1714597443841,-553.79,0.0005452,120]
[325229215,1714597443864,-500.0,0.0005452,120]
[325229216,1714597443887,-424.24,0.0005452,120]
[325229217,1714597443909,-738.1,0.0005452,120]
[325229218,1714597443932,-500.0,0.0005452,120]
[325229219,1714597443954,-169.54,0.0005452,120]
[325229220,1714597443978,-500.0,0.0005452,120]
[325229221,1714597444001,-500.0,0.0005452,120]
[325229222,1714597444025,-500.0,0.0005452,120]
[325229223,1714597444048,-480.97,0.0005452,120]
[325229224,1714597444072,-9470.42,0.0005452,120]
[325229225,1714597444096,-547.16,0.0005452,120]
[325229226,1714597444120,-500.0,0.0005452,120]
[325229227,1714597444142,-220.88,0.0005452,120]
[325229228,1714597444165,-500.0,0.0005452,120]
[325229229,1714597444190,-500.0,0.0005452,120]
[325229230,1714597444214,-500.0,0.0005452,120]
[325229231,1714597444240,-500.0,0.0005452,120]
[325229232,1714597444370,-213.93,0.0005452,120]
[325229233,1714597444395,-500.0,0.0005452,120]
[325229234,1714597444421,-555.8531219,0.0005452,120]
[325229235,1714597444446,-383.74,0.0005452,120]
[325229236,1714597444550,500.0,0.00052876,30]
[325229237,1714597444577,500.0,0.00052876,120]
[325229238,1714597444608,500.0,0.00053424,30]
[325229239,1714597444634,416.0092392,0.00053424,120]
[325229240,1714597444662,500.0,0.00053972,30]
[325229241,1714597444691,500.0,0.0005452,30]
[325229242,1714597444725,500.0,0.00052876,120]
[325229243,1714597444760,500.0,0.00053424,120]
[325229244,1714597444787,500.0,0.00053972,120]
[325229245,1714597444813,151.88954364,0.00052876,120]
[325229246,1714597444841,500.0,0.00052876,120]
[325229247,1714597444871,500.0,0.00052876,120]
[325229248,1714597444897,500.0,0.00053424,120]
[325229249,1714597444923,500.0,0.00052876,120]
[325229250,1714597444949,500.0,0.00053972,120]
[325229251,1714597444975,987.36,0.00052876,120]
[325229252,1714597445002,284.61,0.0005452,120]
[325229253,1714597445030,500.0,0.00052876,120]
[325229254,1714597445057,987.36,0.00053424,120]
[325229255,1714597445085,180.91,0.00053424,120]
[325229256,1714597445116,987.36,0.00053972,120]
[325229257,1714597445144,987.36,0.0005452,120]
[325229258,1714597445177,545.67,0.00051812,30]
[325229259,1714597445222,500.0,0.00052876,120]
[325229260,1714597445383,1000.0,0.00051822,30]
[325229261,1714597445412,500.0,0.00052876,120]
[325229262,1714597445440,500.0,0.00052876,120]
[325229263,1714597445468,449.4,0.00053424,120]
[325229264,1714597447092,500.0,0.00052876,120]
[325229265,1714597447952,500.0,0.00052876,120]
[325229266,1714597449266,500.0,0.00052876,120]
[325229267,1714597450694,500.0,0.00052876,120]
[325229268,1714597451577,500.0,0.00052876,120]
[325229269,1714597453531,500.0,0.00052876,120]
[325229270,1714597453825,500.0,0.00052876,120]
[325229271,1714597454101,500.0,0.00053424,120]
[325229272,1714597455824,500.0,0.00052876,120]
[325229273,1714597456089,153.86289084,0.00053424,120]
[325229274,1714597456776,500.0,0.00052876,120]
[325229275,1714597496686,379.53531224,9.999e-05,2]
[325229287,1714597644749,154.78330338,0.0001,2]
[325229288,1714597662695,154.78330338,0.0001,2]
[325229292,1714597684701,154.78330338,0.0001,2]
[325229294,1714597702702,213.33908483,0.0001,2]
[325229342,1714597831969,-379.53531224,0.00020647,2]
[325229344,1714597831979,-520.45497619,0.00020648,2]
[325229346,1714597831988,-1010.6628734,0.00020648,2]
[325229348,1714597831997,-460.13643782,0.00020649,2]
[325229350,1714597832006,-24900.0,0.0002065,2]
[325229352,1714597832016,-196.14409857,0.00020912,2]
[325229354,1714597832025,-301.33246564,0.00020912,2]
[325229356,1714597832035,-155.10854111,0.00020912,2]
[325229358,1714597832044,-207.82193836,0.00020912,2]
[325229360,1714597832054,-514.23297925,0.00020912,2]
[325229363,1714597832063,-203.71502327,0.00020912,2]
[325229366,1714597832073,-5807.75773021,0.00020912,2]
[325229369,1714597832082,-979.62694157,0.00020913,2]
[325229372,1714597832091,-170.657436,0.00022036,2]
[325229375,1714597832100,-154.89611828,0.00025,2]
[325229378,1714597832110,-150.0,0.00029945,3]
[325229381,1714597832119,-154.93729695,0.0003,4]
[325229384,1714597832128,-154.0,0.0003,2]
[325229387,1714597832138,-154.0,0.00033,2]
[325229390,1714597832147,-5601.96924963,0.000349,2]
[325229392,1714597832160,-4543.42659555,0.000349,2]
[325229394,1714597832171,-1518.48172937,0.000349,2]
[325229424,1714597838246,-2877.97736914,0.000349,2]
[325229425,1714597838256,-5000.0,0.00039,4]
[325229426,1714597838265,-153.32315408,0.00039361,7]
[325229427,1714597838276,-545.67,0.0003999,3]
[325229428,1714597838287,-4806.330127,0.0004,2]
[325229429,1714597838297,-359.86505922,0.0004,2]
[325229430,1714597838306,-1089.96062849,0.0004,2]
[325229431,1714597838317,-13772.3960811,0.0004013,2]
[325229432,1714597838326,-458.11110576,0.00040248,30]
[325229433,1714597838335,-152.70730249,0.00040624,30]
[325229434,1714597838345,-152.70730249,0.00042486,30]
[325229435,1714597838355,-154.8510483,0.00043623,30]
[325229436,1714597838364,-151.0,0.00045,120]
[325229437,1714597838374,-151.0,0.0004737,120]
[325229438,1714597838383,-2411.29,0.00048185,14]
[325229439,1714597838392,-2000.0,0.00048299,30]
[325229440,1714597838401,-151.0,0.00049726,120]
[325229441,1714597838411,-750.0,0.00049863,2]
[325229442,1714597838422,-1000.0,0.0005,30]
[325229443,1714597838432,-1000.0,0.0005,30]
[325229444,1714597838441,-1000.0,0.0005,30]
[325229445,1714597838451,-151.0,0.0005,120]
[325229446,1714597838460,-152.90186699,0.00050045,60]
[325229447,1714597838470,-378.57667597,0.00050382,120]
[325229448,1714597838479,-458.11110576,0.00050867,60]
[325229449,1714597838489,-153.0,0.00051822,2]
[325229450,1714597838499,-153.0,0.00051822,2]
[325229451,1714597838508,-153.0,0.00051822,2]
[325229452,1714597838518,-153.0,0.00051822,2]
[325229453,1714597838527,-153.0,0.00051822,2]
[325229454,1714597838537,-153.0,0.00051822,2]
[325229455,1714597838546,-153.0,0.00051822,2]
[325229456,1714597838555,-153.0,0.00051822,2]
[325229457,1714597838565,-276.7295646,0.00051822,2]
[325229458,1714597838575,-153.0,0.00051822,2]
[325229459,1714597838584,-153.0,0.00051822,2]
[325229460,1714597838593,-153.0,0.00051822,2]
[325229461,1714597838602,-153.0,0.00051822,2]
[325229462,1714597838611,-153.0,0.00051822,2]
[325229463,1714597838620,-153.0,0.00051822,2]
[325229464,1714597838630,-153.0,0.00051822,2]
[325229465,1714597838639,-153.0,0.00051822,2]
[325229466,1714597838648,-153.0,0.00051822,2]
[325229467,1714597838658,-153.0,0.00051822,2]
[325229468,1714597838671,-153.0,0.00051822,2]
[325229469,1714597838682,-153.0,0.00051822,2]
[325229470,1714597838692,-153.0,0.00051822,2]
[325229472,1714597838701,-153.0,0.00051822,2]
[325229473,1714597838711,-153.0,0.00051822,2]
[325229476,1714597838723,-153.0,0.00051822,2]
[325229478,1714597838733,-153.0,0.00051822,2]
[325229479,1714597838742,-153.0,0.00051822,2]
[325229480,1714597838752,-153.0,0.00051822,2]
[325229481,1714597838761,-500.0,0.00052054,120]
[325229482,1714597838771,-166.666666,0.00052055,2]
[325229483,1714597838781,-151.0,0.00052082,120]
[325229485,1714597838790,-500.0,0.00052775,120]
[325229486,1714597838800,-500.0,0.00052775,120]
[325229487,1714597838809,-175.43400899,0.00052776,2]
[325229488,1714597838820,-313.66,0.00052866,3]
[325229489,1714597838830,-261.39,0.00052866,3]
[325229490,1714597838840,-217.82,0.00052866,3]
[325229491,1714597838849,-500.0,0.00052875,120]
[325229492,1714597838859,-500.0,0.00052875,120]
[325229493,1714597838870,-500.0,0.00052875,120]
[325229494,1714597838879,-500.0,0.00052876,2]
[325229495,1714597838889,-500.0,0.00052876,3]
[325229496,1714597838899,-500.0,0.00052876,2]
[325229497,1714597838908,-300.0,0.00052876,2]
[325229498,1714597838920,-500.0,0.00052876,2]
[325229499,1714597838929,-500.0,0.00052876,5]
[325229500,1714597838938,-591.83090093,0.00052876,120]
[325229501,1714597838948,-683.19,0.00052876,120]
[325229502,1714597838957,-500.0,0.00052876,120]
[325229503,1714597838967,-500.0,0.00052876,120]
[325229504,1714597838976,-500.0,0.00052876,120]
[325229505,1714597838985,-500.0,0.00052876,120]
[325229506,1714597838995,-500.0,0.00052876,120]
[325229507,1714597839004,-452.50003269,0.00052876,120]
[325229508,1714597839017,-47.49996731,0.00052876,120]
[325229509,1714597839027,-500.0,0.00052876,120]
[325229510,1714597839037,-500.0,0.00052876,120]
[325229511,1714597839047,-500.0,0.00052876,120]
[325229512,1714597839056,-500.0,0.00052876,120]
[325229513,1714597839066,-500.0,0.00052876,120]
[325229514,1714597839081,-300.0,0.00052876,7]
[325229515,1714597839093,-500.0,0.00052876,120]
[325229516,1714597839248,-500.0,0.00052876,7]
[325229517,1714597839258,-500.0,0.00052876,120]
[325229518,1714597839267,-610.74812381,0.00052876,120]
[325229519,1714597839277,-500.0,0.00052876,120]
[325229520,1714597839290,-597.36,0.00052876,120]
[325229521,1714597839299,-500.0,0.00052876,120]
[325229522,1714597839309,-500.0,0.00052876,120]
[325229523,1714597839318,-500.0,0.00052876,120]
[325229524,1714597839327,-500.0,0.00052876,120]
[325229525,1714597839338,-500.0,0.00052876,120]
[325229526,1714597839349,-500.0,0.00052876,120]
[325229527,1714597839359,-500.0,0.00052876,120]
[325229528,1714597839370,-786.25,0.00052876,2]
[325229529,1714597839379,-500.0,0.00052876,120]
[325229530,1714597839388,-500.47129775,0.00052876,120]
[325229531,1714597839398,-500.0,0.00052876,120]
[325229532,1714597839408,-500.0,0.00052876,120]
[325229533,1714597839419,-500.0,0.00052876,120]
[325229534,1714597839428,-500.0,0.00052876,120]
[325229535,1714597839438,-307.93494572,0.00052876,120]
[325229536,1714597839447,-500.0,0.00052876,120]
[325229537,1714597839457,-500.0,0.00052876,120]
[325229538,1714597839466,-500.0,0.00052876,120]
[325229539,1714597839476,-500.0,0.00052876,120]
[325229540,1714597839485,-500.0,0.00052876,120]
[325229541,1714597839495,-500.0,0.00052876,120]
[325229542,1714597839505,-651.76,0.00052876,120]
[325229543,1714597839514,-500.0,0.00052876,120]
[325229544,1714597839523,-500.0,0.00052876,120]
[325229545,1714597839533,-500.0,0.00052876,120]
[325229546,1714597839542,-500.0,0.00052876,120]
[325229547,1714597839551,-500.0,0.00052876,120]
[325229548,1714597839560,-500.0,0.00052876,120]
[325229549,1714597839570,-500.0,0.00052876,120]
[325229550,1714597839579,-500.0,0.00052876,120]
[325229551,1714597839588,-500.0,0.00052876,120]
[325229552,1714597839599,-500.0,0.00052876,120]
[325229553,1714597839608,-500.0,0.00052876,120]
[325229554,1714597839618,-500.0,0.00052876,120]
[325229555,1714597839627,-500.0,0.00052876,120]
[325229556,1714597839636,-500.0,0.00052876,120]
[325229557,1714597839645,-500.0,0.00052876,120]
[325229558,1714597839655,-500.0,0.00052876,120]
[325229559,1714597839669,-500.0,0.00052876,120]
[325229560,1714597839679,-500.0,0.00052876,120]
[325229561,1714597839689,-500.0,0.00052876,120]
[325229563,1714597839700,-600.0,0.00052876,120]
[325229565,1714597839709,-500.0,0.00052876,120]
[325229566,1714597839719,-500.00049602,0.00052876,120]
[325229568,1714597839728,-199.14717222,0.00052876,120]
[325229570,1714597839737,-500.0,0.00052876,120]
[325229572,1714597839747,-500.0,0.00052876,120]
[325229574,1714597839756,-500.0,0.00052876,120]
[325229576,1714597839766,-585.82,0.00052876,120]
[325229578,1714597839775,-500.0,0.00052876,120]
[325229580,1714597839785,-500.0,0.00052876,120]
[325229582,1714597839794,-500.0,0.00052876,120]
[325229584,1714597839804,-7892.02,0.00052876,120]
[325229586,1714597839814,-500.0,0.00052876,120]
[325229587,1714597839823,-500.0,0.00052876,120]
[325229588,1714597839832,-500.0,0.00052876,120]
[325229589,1714597839842,-500.0,0.00052876,120]
[325229591,1714597839851,-500.0,0.00052876,120]
[325229593,1714597839861,-184.4,0.00052876,120]
[325229595,1714597839870,-500.0,0.00052876,120]
[325229597,1714597839879,-500.0,0.00052876,120]
[325229599,1714597839889,-500.0,0.00052876,120]
[325229600,1714597839898,-500.0,0.00052876,120]
[325229602,1714597839907,-500.0,0.00052876,120]
[325229604,1714597839921,-500.0,0.00052876,120]
[325229606,1714597839930,-500.0,0.00052876,120]
[325229608,1714597839939,-500.0,0.00052876,120]
[325229610,1714597839948,-500.0,0.00052876,120]
[325229612,1714597839957,-531.91596761,0.00052876,120]
[325229614,1714597839966,-500.0,0.00052876,120]
[325229616,1714597839975,-500.0,0.00052876,120]
[325229618,1714597839984,-500.0,0.00052876,120]
[325229620,1714597839994,-500.0,0.00052876,120]
[325229622,1714597840003,-500.0,0.00052876,20]
[325229624,1714597840013,-500.0,0.00052876,120]
[325229627,1714597840022,-500.0,0.00052876,120]
[325229629,1714597840031,-500.0,0.00052876,120]
[325229631,1714597840040,-500.0,0.00052876,120]
[325229633,1714597840049,-500.0,0.00052876,120]
[325229635,1714597840059,-500.0,0.00052876,120]
[325229637,1714597840068,-1742.81,0.00052876,120]
[325229639,1714597840078,-511.37,0.00052876,21]
[325229641,1714597840087,-500.0,0.00052876,120]
[325229643,1714597840096,-500.0,0.00052876,120]
[325229645,1714597840105,-151.0,0.00052876,120]
[325229647,1714597840114,-500.0,0.00052876,120]
[325229649,1714597840123,-500.0,0.00052876,120]
[325229651,1714597840132,-529.69,0.00052876,120]
[325229653,1714597840141,-500.0,0.00052876,120]
[325229654,1714597840151,-500.0,0.00052876,120]
[325229655,1714597840161,-500.0,0.00052876,120]
[325229656,1714597840173,-230.0,0.00052876,120]
[325229657,1714597840182,-500.0,0.00052876,120]
[325229658,1714597840191,-500.0,0.00052876,120]
[325229659,1714597840201,-516.10449329,0.00052876,120]
[325229660,1714597840210,-500.0,0.00052876,120]
[325229661,1714597840219,-500.0,0.00052876,120]
[325229662,1714597840228,-500.0,0.00052876,120]
[325229663,1714597840237,-500.0,0.00052876,120]
[325229664,1714597840247,-500.0,0.00052876,120]
[325229665,1714597840257,-500.0,0.00052876,7]
[325229666,1714597840266,-501.35121444,0.00052876,120]
[325229667,1714597840277,-500.0,0.00052876,120]
[325229668,1714597840288,-563.76523579,0.00052876,120]
[325229669,1714597840297,-500.0,0.00052876,120]
[325229670,1714597840306,-500.0,0.00052876,120]
[325229671,1714597840315,-500.0,0.00052876,120]
[325229672,1714597840326,-500.0,0.00052876,120]
[325229673,1714597840335,-500.0,0.00052876,120]
[325229674,1714597840345,-500.0,0.00052876,120]
[325229675,1714597840355,-500.0,0.00052876,120]
[325229676,1714597840366,-500.0,0.00052876,120]
[325229677,1714597840375,-587.51,0.00052876,120]
[325229678,1714597840384,-500.0,0.00052876,120]
[325229679,1714597840394,-283.30929255,0.00052876,120]
[325229680,1714597840402,-500.0,0.00052876,120]
[325229681,1714597840412,-500.0,0.00052876,120]
[325229682,1714597840427,-503.42461169,0.00052876,120]
[325229683,1714597840436,-500.0,0.00052876,120]
[325229684,1714597840445,-500.0,0.00052876,120]
[325229685,1714597840454,-500.0,0.00052876,120]
[325229686,1714597840463,-500.0,0.00052876,120]
[325229687,1714597840473,-500.0,0.00052876,120]
[325229688,1714597840483,-500.0,0.00052876,120]
[325229689,1714597840492,-500.0,0.00052876,120]
[325229690,1714597840501,-500.0,0.00052876,120]
[325229691,1714597840512,-500.0,0.00052876,120]
[325229692,1714597840522,-500.0,0.00052876,120]
[325229693,1714597840532,-500.0,0.00052876,2]
[325229694,1714597840542,-500.0,0.00052876,120]
[325229695,1714597840551,-500.0,0.00052876,120]
[325229696,1714597840560,-500.0,0.00052876,120]
[325229697,1714597840570,-500.0,0.00052876,120]
[325229698,1714597840580,-500.0,0.00052876,120]
[325229699,1714597840590,-500.0,0.00052876,120]
[325229700,1714597840600,-500.0,0.00052876,30]
[325229701,1714597840610,-500.0,0.00052876,120]
[325229702,1714597840619,-500.0,0.00052876,120]
[325229703,1714597840629,-500.0,0.00052876,120]
[325229704,1714597840638,-500.0,0.00052876,120]
[325229705,1714597840648,-500.0,0.00052876,120]
[325229706,1714597840657,-500.0,0.00052876,120]
[325229707,1714597840670,-500.0,0.00052876,120]
[325229708,1714597840679,-500.0,0.00052876,120]
[325229709,1714597840689,-500.0,0.00052876,120]
[325229710,1714597840698,-500.0,0.00052876,30]
[325229711,1714597840708,-500.0,0.00052876,120]
[325229712,1714597840717,-500.0,0.00052876,120]
[325229713,1714597840727,-500.0,0.00052876,120]
[325229714,1714597840736,-500.0,0.00052876,120]
[325229715,1714597840746,-500.0,0.00052876,120]
[325229716,1714597840755,-500.0,0.00052876,120]
[325229717,1714597840765,-500.0,0.00052876,120]
[325229718,1714597840775,-283.71639104,0.00052876,120]
[325229719,1714597840784,-500.0,0.00052876,120]
[325229720,1714597840794,-500.0,0.00052876,120]
[325229721,1714597840804,-500.0,0.00052876,120]
[325229722,1714597840813,-500.0,0.00052876,120]
[325229723,1714597840822,-500.0,0.00052876,120]
[325229724,1714597840832,-500.0,0.00052876,120]
[325229725,1714597840842,-505.0,0.00052876,120]
[325229726,1714597840852,-500.0,0.00052876,120]
[325229727,1714597840861,-500.0,0.00052876,120]
[325229728,1714597840871,-500.0,0.00052876,120]
[325229729,1714597840880,-222.05634145,0.00052876,120]
[325229730,1714597840890,-500.0,0.00052876,120]
[325229731,1714597840899,-500.0,0.00052876,120]
[325229732,1714597840911,-505.1,0.00052876,120]
[325229733,1714597840922,-500.0,0.00052876,120]
[325229734,1714597840931,-516.72858567,0.00052876,120]
[325229735,1714597840940,-500.0,0.00052876,120]
[325229736,1714597840949,-500.0,0.00052876,120]
[325229737,1714597840958,-500.0,0.00052876,120]
[325229738,1714597840967,-500.0,0.00052876,120]
[325229739,1714597840976,-500.0,0.00052876,120]
[325229740,1714597840986,-500.0,0.00052876,120]
[325229741,1714597840994,-500.0,0.00052876,120]
[325229742,1714597841003,-500.0,0.00052876,120]
[325229743,1714597841013,-500.0,0.00052876,120]
[325229744,1714597841022,-500.0,0.00052876,120]
[325229745,1714597841031,-500.0,0.00052876,120]
[325229746,1714597841041,-500.0,0.00052876,120]
[325229747,1714597841050,-500.0,0.00052876,120]
[325229748,1714597841059,-500.0,0.00052876,120]
[325229749,1714597841068,-500.0,0.00052876,120]
[325229750,1714597841077,-500.0,0.00052876,120]
[325229751,1714597841086,-454.16844418,0.00052876,120]
[325229752,1714597841095,-588.65,0.00052876,120]
[325229753,1714597841104,-500.0,0.00052876,120]
[325229754,1714597841114,-500.0,0.00052876,120]
[325229755,1714597841124,-500.0,0.00052876,120]
[325229756,1714597841133,-500.0,0.00052876,120]
[325229757,1714597841142,-500.0,0.00052876,120]
[325229758,1714597841151,-500.0,0.00052876,120]
[325229759,1714597841161,-500.0,0.00052876,120]
[325229760,1714597841172,-500.0,0.00052876,120]
[325229761,1714597841182,-500.0,0.00052876,120]
[325229762,1714597841191,-500.0,0.00052876,120]
[325229763,1714597841200,-500.0,0.00052876,120]
[325229764,1714597841209,-500.0,0.00052876,120]
[325229765,1714597841219,-500.0,0.00052876,120]
[325229766,1714597841228,-500.0,0.00052876,120]
[325229767,1714597841238,-500.0,0.00052876,120]
[325229768,1714597841248,-572.79337958,0.00052876,120]
[325229769,1714597841259,-500.0,0.00052876,120]
[325229770,1714597841268,-500.0,0.00052876,120]
[325229771,1714597841278,-500.0,0.00052876,120]
[325229772,1714597841289,-500.0,0.00052876,120]
[325229773,1714597841300,-557.95691212,0.00052876,120]
[325229774,1714597841309,-500.0,0.00052876,120]
[325229775,1714597841319,-500.0,0.00052876,120]
[325229776,1714597841328,-500.0,0.00052876,120]
[325229777,1714597841339,-500.0,0.00052876,120]
[325229778,1714597841348,-500.0,0.00052876,120]
[325229779,1714597841357,-500.0,0.00052876,120]
[325229780,1714597841367,-500.0,0.00052876,120]
[325229781,1714597841376,-500.0,0.00052876,120]
[325229782,1714597841386,-500.51115075,0.00052876,120]
[325229783,1714597841395,-500.0,0.00052876,120]
[325229784,1714597841404,-500.0,0.00052876,120]
[325229785,1714597841416,-500.0,0.00052876,120]
[325229786,1714597841425,-500.0,0.00052876,120]
[325229787,1714597841435,-500.0,0.00052876,120]
[325229788,1714597841444,-500.0,0.00052876,120]
[325229789,1714597841453,-500.0,0.00052876,120]
[325229790,1714597841463,-500.0,0.00052876,120]
[325229791,1714597841473,-500.0,0.00052876,120]
[325229792,1714597841483,-500.0,0.00052876,120]
[325229793,1714597841492,-500.0,0.00052876,120]
[325229794,1714597841501,-500.0,0.00052876,120]
[325229795,1714597841511,-500.0,0.00052876,120]
[325229796,1714597841520,-500.0,0.00052876,120]
[325229797,1714597841529,-500.0,0.00052876,120]
[325229798,1714597841538,-500.0,0.00052876,120]
[325229799,1714597841547,-500.0,0.00052876,120]
[325229800,1714597841556,-500.0,0.00052876,120]
[325229801,1714597841565,-500.0,0.00052876,120]